{"text_format":"3","workbook":"xlsx","n_sheets":2,"sheets":[" Дети 3-7 лет","Дети до 3-лет"],"not_rendered":{"images":3,"external_links":2},"read":"whole","date_system":"1900"}

{"sheet":" Дети 3-7 лет","index":0,"n_rows":22,"n_cols":7,"rows_kept":22,"merged":[[0,3,0,4]]}
[null," МБДОУ д/с № 362"]
["Прием пищи","Блюдо","Выход","Калорийность","Белки","Жиры","Углеводы"]
["Завтрак",{"$f":"'[1]Дневной рацион, Дети 3-7 лет, '!D4","v":"Каша вязкая молочная  пшенная."},{"$f":"'[1]Дневной рацион, Дети 3-7 лет, '!E4","v":200},{"$f":"'[1]Дневной рацион, Дети 3-7 лет, '!F4","v":0},{"$f":"'[1]Дневной рацион, Дети 3-7 лет, '!G4","v":206.2},{"$f":"'[1]Дневной рацион, Дети 3-7 лет, '!H4","v":6.3},{"$f":"'[1]Дневной рацион, Дети 3-7 лет, '!I4","v":7.6}]
[null,{"$f":"'[1]Дневной рацион, Дети 3-7 лет, '!D5","v":"Бутерброды с маслом ."},{"$f":"'[1]Дневной рацион, Дети 3-7 лет, '!E5","v":25},{"$f":"'[1]Дневной рацион, Дети 3-7 лет, '!F5","v":0},{"$f":"'[1]Дневной рацион, Дети 3-7 лет, '!G5","v":121.667},{"$f":"'[1]Дневной рацион, Дети 3-7 лет, '!H5","v":1.334},{"$f":"'[1]Дневной рацион, Дети 3-7 лет, '!I5","v":9.167}]
[null,{"$f":"'[1]Дневной рацион, Дети 3-7 лет, '!D6","v":"Какао с молоком ."},{"$f":"'[1]Дневной рацион, Дети 3-7 лет, '!E6","v":200},{"$f":"'[1]Дневной рацион, Дети 3-7 лет, '!F6","v":0},{"$f":"'[1]Дневной рацион, Дети 3-7 лет, '!G6","v":106.7},{"$f":"'[1]Дневной рацион, Дети 3-7 лет, '!H6","v":4.6},{"$f":"'[1]Дневной рацион, Дети 3-7 лет, '!I6","v":4.3}]
["Завтрак №2"]
["Обед",{"$f":"'[1]Дневной рацион, Дети 3-7 лет, '!D7","v":"Щи из свежей капусты  с картофелем с мясом и со сметаной."},{"$f":"'[1]Дневной рацион, Дети 3-7 лет, '!E7","v":200},{"$f":"'[1]Дневной рацион, Дети 3-7 лет, '!F7","v":0},{"$f":"'[1]Дневной рацион, Дети 3-7 лет, '!G7","v":73.56},{"$f":"'[1]Дневной рацион, Дети 3-7 лет, '!H7","v":1.66},{"$f":"'[1]Дневной рацион, Дети 3-7 лет, '!I7","v":4.86}]
[null,"помидор соленый",41]
[null,{"$f":"'[1]Дневной рацион, Дети 3-7 лет, '!D8","v":"Биточки рубленные мясные ."},{"$f":"'[1]Дневной рацион, Дети 3-7 лет, '!E8","v":60},{"$f":"'[1]Дневной рацион, Дети 3-7 лет, '!F8","v":0},{"$f":"'[1]Дневной рацион, Дети 3-7 лет, '!G8","v":179.143},{"$f":"'[1]Дневной рацион, Дети 3-7 лет, '!H8","v":12.086},{"$f":"'[1]Дневной рацион, Дети 3-7 лет, '!I8","v":10.2}]
[null,{"$f":"'[1]Дневной рацион, Дети 3-7 лет, '!D9","v":"Соус белый основной ."},{"$f":"'[1]Дневной рацион, Дети 3-7 лет, '!E9","v":30},{"$f":"'[1]Дневной рацион, Дети 3-7 лет, '!F9","v":0},{"$f":"'[1]Дневной рацион, Дети 3-7 лет, '!G9","v":19.65},{"$f":"'[1]Дневной рацион, Дети 3-7 лет, '!H9","v":0.81},{"$f":"'[1]Дневной рацион, Дети 3-7 лет, '!I9","v":1.26}]
[null,{"$f":"'[1]Дневной рацион, Дети 3-7 лет, '!D10","v":"Каша гречневая рассыпчатая ."},{"$f":"'[1]Дневной рацион, Дети 3-7 лет, '!E10","v":110},{"$f":"'[1]Дневной рацион, Дети 3-7 лет, '!F10","v":0},{"$f":"'[1]Дневной рацион, Дети 3-7 лет, '!G10","v":28.875},{"$f":"'[1]Дневной рацион, Дети 3-7 лет, '!H10","v":0.902},{"$f":"'[1]Дневной рацион, Дети 3-7 лет, '!I10","v":0.715}]
[null,{"$f":"'[1]Дневной рацион, Дети 3-7 лет, '!D11","v":"Компот из кураги и изюма."},{"$f":"'[1]Дневной рацион, Дети 3-7 лет, '!E11","v":200},{"$f":"'[1]Дневной рацион, Дети 3-7 лет, '!F11","v":0},{"$f":"'[1]Дневной рацион, Дети 3-7 лет, '!G11","v":18.64},{"$f":"'[1]Дневной рацион, Дети 3-7 лет, '!H11","v":0.12},{"$f":"'[1]Дневной рацион, Дети 3-7 лет, '!I11","v":0}]
[null,{"$f":"'[1]Дневной рацион, Дети 3-7 лет, '!D12","v":"Хлеб  пшеничный"},{"$f":"'[1]Дневной рацион, Дети 3-7 лет, '!E12","v":40},{"$f":"'[1]Дневной рацион, Дети 3-7 лет, '!F12","v":0},{"$f":"'[1]Дневной рацион, Дети 3-7 лет, '!G12","v":0},{"$f":"'[1]Дневной рацион, Дети 3-7 лет, '!H12","v":0},{"$f":"'[1]Дневной рацион, Дети 3-7 лет, '!I12","v":0}]
[null,{"$f":"'[1]Дневной рацион, Дети 3-7 лет, '!D13","v":"Хлеб  ржаной"},{"$f":"'[1]Дневной рацион, Дети 3-7 лет, '!E13","v":35},{"$f":"'[1]Дневной рацион, Дети 3-7 лет, '!F13","v":0},{"$f":"'[1]Дневной рацион, Дети 3-7 лет, '!G13","v":0},{"$f":"'[1]Дневной рацион, Дети 3-7 лет, '!H13","v":0},{"$f":"'[1]Дневной рацион, Дети 3-7 лет, '!I13","v":0}]
[]
["Полдник",{"$f":"'[1]Дневной рацион, Дети 3-7 лет, '!D14","v":"Йогурт"},{"$f":"'[1]Дневной рацион, Дети 3-7 лет, '!E14","v":180},{"$f":"'[1]Дневной рацион, Дети 3-7 лет, '!F14","v":0},{"$f":"'[1]Дневной рацион, Дети 3-7 лет, '!G14","v":156.6},{"$f":"'[1]Дневной рацион, Дети 3-7 лет, '!H14","v":9},{"$f":"'[1]Дневной рацион, Дети 3-7 лет, '!I14","v":5.76}]
[null,{"$f":"'[1]Дневной рацион, Дети 3-7 лет, '!D15","v":"Шанежка наливная"},{"$f":"'[1]Дневной рацион, Дети 3-7 лет, '!E15","v":60},{"$f":"'[1]Дневной рацион, Дети 3-7 лет, '!F15","v":0},{"$f":"'[1]Дневной рацион, Дети 3-7 лет, '!G15","v":156},{"$f":"'[1]Дневной рацион, Дети 3-7 лет, '!H15","v":4.56},{"$f":"'[1]Дневной рацион, Дети 3-7 лет, '!I15","v":4.08}]
[]
["Ужин",{"$f":"'[1]Дневной рацион, Дети 3-7 лет, '!D16","v":"каша вязкая молочная геркулес."},{"$f":"'[1]Дневной рацион, Дети 3-7 лет, '!E16","v":200},{"$f":"'[1]Дневной рацион, Дети 3-7 лет, '!F16","v":0},{"$f":"'[1]Дневной рацион, Дети 3-7 лет, '!G16","v":32.72},{"$f":"'[1]Дневной рацион, Дети 3-7 лет, '!H16","v":1.02},{"$f":"'[1]Дневной рацион, Дети 3-7 лет, '!I16","v":1.34}]
[null,{"$f":"'[1]Дневной рацион, Дети 3-7 лет, '!D17","v":"Кисель витаминизированный Витошка."},{"$f":"'[1]Дневной рацион, Дети 3-7 лет, '!E17","v":180},{"$f":"'[1]Дневной рацион, Дети 3-7 лет, '!F17","v":0},{"$f":"'[1]Дневной рацион, Дети 3-7 лет, '!G17","v":48.06},{"$f":"'[1]Дневной рацион, Дети 3-7 лет, '!H17","v":0.18},{"$f":"'[1]Дневной рацион, Дети 3-7 лет, '!I17","v":0}]
[null,{"$f":"'[1]Дневной рацион, Дети 3-7 лет, '!D18","v":"Хлеб  пшеничный"},{"$f":"'[1]Дневной рацион, Дети 3-7 лет, '!E18","v":20},{"$f":"'[1]Дневной рацион, Дети 3-7 лет, '!F18","v":0},{"$f":"'[1]Дневной рацион, Дети 3-7 лет, '!G18","v":0},{"$f":"'[1]Дневной рацион, Дети 3-7 лет, '!H18","v":0},{"$f":"'[1]Дневной рацион, Дети 3-7 лет, '!I18","v":0}]
[null,{"$f":"'[1]Дневной рацион, Дети 3-7 лет, '!D19","v":0},{"$f":"'[1]Дневной рацион, Дети 3-7 лет, '!E19","v":0},{"$f":"'[1]Дневной рацион, Дети 3-7 лет, '!F19","v":0},{"$f":"'[1]Дневной рацион, Дети 3-7 лет, '!G19","v":0},{"$f":"'[1]Дневной рацион, Дети 3-7 лет, '!H19","v":0},{"$f":"'[1]Дневной рацион, Дети 3-7 лет, '!I19","v":0}]

{"sheet":"Дети до 3-лет","index":1,"n_rows":24,"n_cols":7,"rows_kept":24}
[]
[]
["Прием пищи","Блюдо","Выход","Калорийность","Белки","Жиры","Углеводы"]
["Завтрак",{"$f":"'[2]Дневной рацион, Дети до 3х лет'!D4","v":"Каша вязкая молочная  пшенная."},{"$f":"'[2]Дневной рацион, Дети до 3х лет'!E4","v":170},{"$f":"'[2]Дневной рацион, Дети до 3х лет'!F4","v":0},{"$f":"'[2]Дневной рацион, Дети до 3х лет'!G4","v":175.27},{"$f":"'[2]Дневной рацион, Дети до 3х лет'!H4","v":5.355},{"$f":"'[2]Дневной рацион, Дети до 3х лет'!I4","v":6.46}]
[null,{"$f":"'[2]Дневной рацион, Дети до 3х лет'!D5","v":"Бутерброды с маслом ."},{"$f":"'[2]Дневной рацион, Дети до 3х лет'!E5","v":25},{"$f":"'[2]Дневной рацион, Дети до 3х лет'!F5","v":0},{"$f":"'[2]Дневной рацион, Дети до 3х лет'!G5","v":121.667},{"$f":"'[2]Дневной рацион, Дети до 3х лет'!H5","v":1.334},{"$f":"'[2]Дневной рацион, Дети до 3х лет'!I5","v":9.167}]
[null,{"$f":"'[2]Дневной рацион, Дети до 3х лет'!D6","v":"Какао с молоком ."},{"$f":"'[2]Дневной рацион, Дети до 3х лет'!E6","v":170},{"$f":"'[2]Дневной рацион, Дети до 3х лет'!F6","v":0},{"$f":"'[2]Дневной рацион, Дети до 3х лет'!G6","v":90.695},{"$f":"'[2]Дневной рацион, Дети до 3х лет'!H6","v":3.91},{"$f":"'[2]Дневной рацион, Дети до 3х лет'!I6","v":3.655}]
["Завтрак №2"]
[]
[null,{"$f":"'[2]Дневной рацион, Дети до 3х лет'!D7","v":"Щи из свежей капусты  с картофелем с мясом и со сметаной."},{"$f":"'[2]Дневной рацион, Дети до 3х лет'!E7","v":180},{"$f":"'[2]Дневной рацион, Дети до 3х лет'!F7","v":0},{"$f":"'[2]Дневной рацион, Дети до 3х лет'!G7","v":66.204},{"$f":"'[2]Дневной рацион, Дети до 3х лет'!H7","v":1.494},{"$f":"'[2]Дневной рацион, Дети до 3х лет'!I7","v":4.374}]
[null,"помидор соленый",41]
[null,{"$f":"'[2]Дневной рацион, Дети до 3х лет'!D8","v":"Биточки рубленные мясные ."},{"$f":"'[2]Дневной рацион, Дети до 3х лет'!E8","v":50},{"$f":"'[2]Дневной рацион, Дети до 3х лет'!F8","v":0},{"$f":"'[2]Дневной рацион, Дети до 3х лет'!G8","v":149.286},{"$f":"'[2]Дневной рацион, Дети до 3х лет'!H8","v":10.072},{"$f":"'[2]Дневной рацион, Дети до 3х лет'!I8","v":8.5}]
[null,{"$f":"'[2]Дневной рацион, Дети до 3х лет'!D9","v":"Соус белый основной ."},{"$f":"'[2]Дневной рацион, Дети до 3х лет'!E9","v":20},{"$f":"'[2]Дневной рацион, Дети до 3х лет'!F9","v":0},{"$f":"'[2]Дневной рацион, Дети до 3х лет'!G9","v":13.1},{"$f":"'[2]Дневной рацион, Дети до 3х лет'!H9","v":0.54},{"$f":"'[2]Дневной рацион, Дети до 3х лет'!I9","v":0.84}]
["Обед",{"$f":"'[2]Дневной рацион, Дети до 3х лет'!D10","v":"Каша гречневая рассыпчатая ."},{"$f":"'[2]Дневной рацион, Дети до 3х лет'!E10","v":90},{"$f":"'[2]Дневной рацион, Дети до 3х лет'!F10","v":0},{"$f":"'[2]Дневной рацион, Дети до 3х лет'!G10","v":23.625},{"$f":"'[2]Дневной рацион, Дети до 3х лет'!H10","v":0.738},{"$f":"'[2]Дневной рацион, Дети до 3х лет'!I10","v":0.585}]
[null,{"$f":"'[2]Дневной рацион, Дети до 3х лет'!D11","v":"Компот из кураги и изюма."},{"$f":"'[2]Дневной рацион, Дети до 3х лет'!E11","v":180},{"$f":"'[2]Дневной рацион, Дети до 3х лет'!F11","v":0},{"$f":"'[2]Дневной рацион, Дети до 3х лет'!G11","v":16.776},{"$f":"'[2]Дневной рацион, Дети до 3х лет'!H11","v":0.108},{"$f":"'[2]Дневной рацион, Дети до 3х лет'!I11","v":0}]
[null,{"$f":"'[2]Дневной рацион, Дети до 3х лет'!D12","v":"Хлеб  пшеничный"},{"$f":"'[2]Дневной рацион, Дети до 3х лет'!E12","v":20},{"$f":"'[2]Дневной рацион, Дети до 3х лет'!F12","v":0},{"$f":"'[2]Дневной рацион, Дети до 3х лет'!G12","v":0},{"$f":"'[2]Дневной рацион, Дети до 3х лет'!H12","v":0},{"$f":"'[2]Дневной рацион, Дети до 3х лет'!I12","v":0}]
[null,{"$f":"'[2]Дневной рацион, Дети до 3х лет'!D13","v":"Хлеб  ржаной"},{"$f":"'[2]Дневной рацион, Дети до 3х лет'!E13","v":20},{"$f":"'[2]Дневной рацион, Дети до 3х лет'!F13","v":0},{"$f":"'[2]Дневной рацион, Дети до 3х лет'!G13","v":0},{"$f":"'[2]Дневной рацион, Дети до 3х лет'!H13","v":0},{"$f":"'[2]Дневной рацион, Дети до 3х лет'!I13","v":0}]
[]
[null,{"$f":"'[2]Дневной рацион, Дети до 3х лет'!D14","v":"Йогурт"},{"$f":"'[2]Дневной рацион, Дети до 3х лет'!E14","v":160},{"$f":"'[2]Дневной рацион, Дети до 3х лет'!F14","v":0},{"$f":"'[2]Дневной рацион, Дети до 3х лет'!G14","v":139.2},{"$f":"'[2]Дневной рацион, Дети до 3х лет'!H14","v":8},{"$f":"'[2]Дневной рацион, Дети до 3х лет'!I14","v":5.12}]
[null,{"$f":"'[2]Дневной рацион, Дети до 3х лет'!D15","v":"Шанежка наливная"},{"$f":"'[2]Дневной рацион, Дети до 3х лет'!E15","v":50},{"$f":"'[2]Дневной рацион, Дети до 3х лет'!F15","v":0},{"$f":"'[2]Дневной рацион, Дети до 3х лет'!G15","v":130},{"$f":"'[2]Дневной рацион, Дети до 3х лет'!H15","v":3.8},{"$f":"'[2]Дневной рацион, Дети до 3х лет'!I15","v":3.4}]
[]
["Ужин",{"$f":"'[2]Дневной рацион, Дети до 3х лет'!D16","v":"каша вязкая молочная геркулес."},{"$f":"'[2]Дневной рацион, Дети до 3х лет'!E16","v":170},{"$f":"'[2]Дневной рацион, Дети до 3х лет'!F16","v":0},{"$f":"'[2]Дневной рацион, Дети до 3х лет'!G16","v":27.812},{"$f":"'[2]Дневной рацион, Дети до 3х лет'!H16","v":0.867},{"$f":"'[2]Дневной рацион, Дети до 3х лет'!I16","v":1.139}]
[null,{"$f":"'[2]Дневной рацион, Дети до 3х лет'!D17","v":"Кисель витаминизированный Витошка до 3-х лет  "},{"$f":"'[2]Дневной рацион, Дети до 3х лет'!E17","v":160},{"$f":"'[2]Дневной рацион, Дети до 3х лет'!F17","v":0},{"$f":"'[2]Дневной рацион, Дети до 3х лет'!G17","v":47.467},{"$f":"'[2]Дневной рацион, Дети до 3х лет'!H17","v":0.178},{"$f":"'[2]Дневной рацион, Дети до 3х лет'!I17","v":0}]
[null,{"$f":"'[2]Дневной рацион, Дети до 3х лет'!D18","v":"Хлеб  пшеничный"},{"$f":"'[2]Дневной рацион, Дети до 3х лет'!E18","v":20},{"$f":"'[2]Дневной рацион, Дети до 3х лет'!F18","v":0},{"$f":"'[2]Дневной рацион, Дети до 3х лет'!G18","v":0},{"$f":"'[2]Дневной рацион, Дети до 3х лет'!H18","v":0},{"$f":"'[2]Дневной рацион, Дети до 3х лет'!I18","v":0}]
[null,{"$f":"'[2]Дневной рацион, Дети до 3х лет'!D19","v":0},{"$f":"'[2]Дневной рацион, Дети до 3х лет'!E19","v":0},{"$f":"'[2]Дневной рацион, Дети до 3х лет'!F19","v":0},{"$f":"'[2]Дневной рацион, Дети до 3х лет'!G19","v":0},{"$f":"'[2]Дневной рацион, Дети до 3х лет'!H19","v":0},{"$f":"'[2]Дневной рацион, Дети до 3х лет'!I19","v":0}]